[Event "FIDE Women GP Monaco 2019"]
[Site "Monaco"]
[Date "2019.12.03"]
[Round "1.1"]
[White "Harika, Dronavalli"]
[Black "Dzagnidze, Nana"]
[Result "1/2-1/2"]
[ECO "B28"]
[WhiteElo "2518"]
[BlackElo "2520"]
[Annotator "ChessBase"]
[PlyCount "83"]
[EventDate "2019.12.03"]
[EventType "tourn"]
[EventCountry "MNC"]
[SourceTitle "playchess.com"]
[Source "ChessBase"]
[SourceQuality "1"]
[TimeControl "40/5400+30:1800+30"]

1. e4 {[%emt 0:00:00]} c5 {[%emt 0:00:00]} 2. Nf3 {[%emt 0:00:00]} a6 {[%emt 0:00:04]} 3. c3 {[%emt 0:00:47]} Nf6 {[%emt 0:00:17]} 4. e5 {[%emt 0:00:26]} Nd5 {[%emt 0:00:04]} 5. d4 {[%emt 0:02:31]} cxd4 {[%emt 0:00:19]} 6. cxd4 {[%emt 0:02:58]} d6 {[%emt 0:00:58]} 7. Bc4 {[%emt 0:00:41]} e6 {[%emt 0:02:36]} 8. O-O {[%emt 0:02:42]} Be7 {[%emt 0:03:32]} 9. Bxd5 {[%emt 0:15:33]} exd5 {[%emt 0:00:27]} 10. Nc3 {[%emt 0:00:06]} Be6 {[%emt 0:07:08]} 11. exd6 {[%emt 0:11:36]} Bxd6 {[%emt 0:19:54]} 12. Ng5 {[%emt 0:15:53]} O-O {[%emt 0:01:07]} 13. f4 {[%emt 0:01:54]} h6 {[%emt 0:12:23]} 14. f5 {[%emt 0:03:53]} hxg5 {[%emt 0:02:33]} 15. fxe6 {[%emt 0:00:07]} fxe6 {[%emt 0:00:04]} 16. Rxf8+ {[%emt 0:01:16]} Qxf8 {[%emt 0:00:23]} 17. Qg4 {[%emt 0:00:59]} Qf5 {[%emt 0:13:08]} 18. Qxf5 {[%emt 0:02:12]} exf5 {[%emt 0:00:35]} 19. Bxg5 {[%emt 0:00:29]} Nc6 {[%emt 0:00:03]} 20. Rd1 {[%emt 0:03:35]} Re8 {[%emt 0:03:19]} 21. Nxd5 {[%emt 0:02:37]} Nxd4 {[%emt 0:05:44]} 22. Be3 {[%emt 0:05:48]} Nc6 {[%emt 0:03:10]} 23. Bf4 {[%emt 0:02:27]} Bxf4 {[%emt 0:01:13]} 24. Nxf4 {[%emt 0:00:05]} Kf7 {[%emt 0:03:16]} 25. Kf2 {[%emt 0:01:35]} Ne5 {[%emt 0:09:25]} 26. h3 {[%emt 0:01:05]} g5 {[%emt 0:01:46]} 27. Nd3 {[%emt 0:03:18]} Nxd3+ {[%emt 0:00:37]} 28. Rxd3 {[%emt 0:00:06]} b5 {[%emt 0:07:30]} 29. Rd7+ {[%emt 0:05:09]} Kf6 {[%emt 0:00:02]} 30. Rd6+ {[%emt 0:00:45]} Ke5 {[%emt 0:00:57]} 31. Rxa6 {[%emt 0:06:03]} Rc8 {[%emt 0:00:02]} 32. Ra5 {[%emt 0:01:03]} Rc2+ {[%emt 0:00:05]} 33. Kf3 {[%emt 0:02:06]} Rxb2 {[%emt 0:00:21]} 34. a4 {[%emt 0:00:05]} Rb3+ {[%emt 0:00:09]} 35. Kf2 {[%emt 0:00:05]} Rb2+ {[%emt 0:00:14]} 36. Kf3 {[%emt 0:00:29]} Rb3+ {[%emt 0:00:10]} 37. Kf2 {[%emt 0:00:14]} Rb2+ {[%emt 0:00:04]} 38. Kg1 {[%emt 0:01:21]} Kf4 {[%emt 0:01:32]} 39. Rxb5 {[%emt 0:00:35]} Ra2 {[%emt 0:00:02]} 40. Rb4+ {[%emt 0:00:19]} Kg3 {[%emt 0:00:39]} 41. Rb3+ {[%emt 0:30:12]} Kf4 {[%emt 0:31:12]} 42. Rb4+ {[%emt 0:00:34]} 1/2-1/2

[Event "FIDE Women GP Monaco 2019"]
[Site "Monaco"]
[Date "2019.12.03"]
[Round "1.2"]
[White "Paehtz, Elisabeth"]
[Black "Zhao, Xue"]
[Result "1/2-1/2"]
[ECO "B33"]
[WhiteElo "2475"]
[BlackElo "2485"]
[Annotator "RC"]
[PlyCount "62"]
[EventDate "2019.12.03"]
[EventType "tourn"]
[EventCountry "MNC"]
[SourceTitle "playchess.com"]
[Source "ChessBase"]
[SourceQuality "1"]
[TimeControl "40/5400+30:1800+30"]

1. e4 {[%emt 0:00:00]} c5 {[%emt 0:00:17]} 2. Nf3 {[%emt 0:00:00]} Nc6 {[%emt 0:00:15]} 3. d4 {[%emt 0:01:28]} cxd4 {[%emt 0:00:06]} 4. Nxd4 {[%emt 0:00:03]} Nf6 {[%emt 0:00:19]} 5. Nc3 {[%emt 0:00:05]} e5 {[%emt 0:00:34]} 6. Ndb5 {[%emt 0:00:05]} d6 {[%emt 0:00:28]} 7. Bg5 {[%emt 0:00:53]} a6 {[%emt 0:00:17]} 8. Na3 {[%emt 0:00:04]} b5 {[%emt 0:00:58]} 9. Nd5 {[%emt 0:00:05]} Be7 {[%emt 0:00:06]} 10. Bxf6 {[%emt 0:00:16]} Bxf6 {[%emt 0:00:04]} 11. c3 {[%emt 0:03:17]} Bg5 {[%emt 0:02:25]} 12. Nc2 {[%emt 0:00:14]} Rb8 {[%emt 0:00:08]} 13. Be2 {[%emt 0:11:59]} O-O {[%emt 0:00:38]} 14. O-O {[%emt 0:00:05]} Ne7 {[%emt 0:07:24]} 15. Ncb4 {[%emt 0:02:16]} Bb7 {[%emt 0:08:30]} 16. a4 {[%emt 0:09:35]} a5 {[%emt 0:06:08]} 17. Nxe7+ {[%emt 0:00:06]} Bxe7 18. Nd5 {[%emt 0:00:30]} bxa4 19. Rxa4 {[%emt 0:00:30]} Bxd5 {[%emt 0:24:32]} 20. Qxd5 {[%emt 0:00:00]} Rxb2 {[%emt 0:00:04]} 21. Bc4 {[%emt 0:00:00]} Qc7 {[%emt 0:18:28]} 22. Qxa5 {[%emt 0:10:57]} Qxa5 {[%emt 0:12:08]} 23. Rxa5 {[%emt 0:00:06]} Bd8 {[%emt 0:04:19]} 24. Ra2 {[%emt 0:02:34]} Rxa2 {[%emt 0:00:21]} 25. Bxa2 {[%emt 0:00:05]} Bb6 {[%emt 0:00:58]} 26. Rb1 {[%emt 0:00:28]} Rb8 {[%emt 0:00:04]} 27. g3 {[%emt 0:00:56]} Kf8 {[%emt 0:00:23]} 28. Kg2 {[%emt 0:00:04]} Ke7 {[%emt 0:00:07]} 29. Bd5 {[%emt 0:00:08]} g6 {[%emt 0:02:11]} 30. h4 {[%emt 0:00:22]} Ba7 {[%emt 0:01:50]} 31. Rxb8 {[%emt 0:00:15]} Bxb8 1/2-1/2

[Event "FIDE Women GP Monaco 2019"]
[Site "Monaco"]
[Date "2019.12.03"]
[Round "1.3"]
[White "Cramling, Pia"]
[Black "Kosteniuk, Alexandra"]
[Result "1/2-1/2"]
[ECO "E43"]
[WhiteElo "2461"]
[BlackElo "2483"]
[Annotator "ChessBase"]
[PlyCount "86"]
[EventDate "2019.12.03"]
[EventType "tourn"]
[EventCountry "MNC"]
[SourceTitle "playchess.com"]
[Source "ChessBase"]
[SourceQuality "1"]
[TimeControl "40/5400+30:1800+30"]

1. d4 {[%emt 0:00:00]} Nf6 {[%emt 0:00:00]} 2. c4 {[%emt 0:00:00]} e6 {[%emt 0:00:00]} 3. Nc3 {[%emt 0:00:00]} Bb4 {[%emt 0:00:00]} 4. e3 {[%emt 0:00:02]} b6 {[%emt 0:00:00]} 5. Bd2 {[%emt 0:02:28]} O-O {[%emt 0:00:09]} 6. Nf3 {[%emt 0:00:39]} c5 {[%emt 0:00:11]} 7. Bd3 {[%emt 0:08:29]} cxd4 {[%emt 0:04:59]} 8. exd4 {[%emt 0:02:13]} Bb7 {[%emt 0:00:28]} 9. a3 {[%emt 0:04:55]} Be7 {[%emt 0:03:03]} 10. b4 {[%emt 0:02:18]} a5 {[%emt 0:06:56]} 11. Rb1 axb4 {[%emt 0:02:33]} 12. axb4 {[%emt 0:09:10]} Na6 {[%emt 0:00:28]} 13. c5 {[%emt 0:07:54]} Nc7 {[%emt 0:02:44]} 14. O-O {[%emt 0:07:12]} Ncd5 {[%emt 0:03:54]} 15. Ne5 {[%emt 0:06:06]} Ra3 {[%emt 0:17:47]} 16. Nxd5 {[%emt 0:14:52]} Bxd5 17. Bc1 Ra2 {[%emt 0:11:35]} 18. Nc4 {[%emt 0:01:54]} b5 {[%emt 0:07:34]} 19. Nb6 Bc6 20. Bb2 {[%emt 0:09:31]} Qb8 {[%emt 0:03:59]} 21. Re1 {[%emt 0:04:15]} Qb7 {[%emt 0:03:58]} 22. d5 {[%emt 0:03:47]} Bxd5 {[%emt 0:12:54]} 23. Nxd5 {[%emt 0:00:40]} Qxd5 {[%emt 0:00:34]} 24. Bxb5 {[%emt 0:00:51]} Qf5 {[%emt 0:12:05]} 25. Qd4 {[%emt 0:05:54]} d6 {[%emt 0:02:38]} 26. cxd6 {[%emt 0:03:30]} Bxd6 {[%emt 0:00:30]} 27. Qxd6 {[%emt 0:04:02]} Qxb5 {[%emt 0:00:04]} 28. Bxf6 gxf6 29. Rb3 {[%emt 0:01:06]} Qb8 {[%emt 0:01:08]} 30. Rg3+ {[%emt 0:00:23]} Kh8 {[%emt 0:00:01]} 31. Qd4 {[%emt 0:01:04]} Qd8 {[%emt 0:00:59]} 32. Qg4 {[%emt 0:00:19]} Rg8 {[%emt 0:00:03]} 33. Rd1 {[%emt 0:00:35]} Qb8 {[%emt 0:02:55]} 34. Qh4 {[%emt 0:01:25]} Qe5 {[%emt 0:00:13]} 35. Rxg8+ {[%emt 0:00:44]} Kxg8 {[%emt 0:00:01]} 36. h3 {[%emt 0:00:33]} h5 {[%emt 0:01:40]} 37. Qc4 {[%emt 0:00:34]} Rb2 {[%emt 0:00:24]} 38. g3 {[%emt 0:00:30]} Qf5 {[%emt 0:01:02]} 39. Qd4 {[%emt 0:00:15]} Qe5 {[%emt 0:00:14]} 40. Kg2 {[%emt 0:00:51]} Kg7 {[%emt 0:00:39]} 41. Rd2 {[%emt 0:30:38]} Rb1 {[%emt 0:30:34]} 42. Qxe5 {[%emt 0:00:35]} fxe5 {[%emt 0:00:03]} 43. Re2 {[%emt 0:00:02]} Kf6 {[%emt 0:00:00]} 1/2-1/2

[Event "FIDE Women GP Monaco 2019"]
[Site "Monaco"]
[Date "2019.12.04"]
[Round "2.2"]
[White "Koneru, Humpy"]
[Black "Muzychuk, Mariya"]
[Result "1-0"]
[ECO "D86"]
[WhiteElo "2574"]
[BlackElo "2559"]
[Annotator "ChessBase"]
[PlyCount "127"]
[EventDate "2019.12.03"]
[EventType "tourn"]
[EventCountry "MNC"]
[SourceTitle "playchess.com"]
[Source "ChessBase"]
[SourceQuality "1"]
[TimeControl "40/5400+30:1800+30"]

1. d4 {[%emt 0:00:00]} Nf6 {[%emt 0:00:00]} 2. c4 {[%emt 0:00:00]} g6 {[%emt 0:00:01]} 3. Nc3 {[%emt 0:00:01]} d5 {[%emt 0:00:07]} 4. cxd5 {[%emt 0:00:13]} Nxd5 {[%emt 0:00:04]} 5. e4 {[%emt 0:00:18]} Nxc3 {[%emt 0:00:05]} 6. bxc3 {[%emt 0:00:06]} Bg7 {[%emt 0:00:06]} 7. Bc4 {[%emt 0:00:23]} c5 {[%emt 0:00:31]} 8. Ne2 {[%emt 0:00:22]} O-O {[%emt 0:00:15]} 9. O-O {[%emt 0:00:28]} Nc6 {[%emt 0:00:51]} 10. Be3 b6 {[%emt 0:01:10]} 11. dxc5 {[%emt 0:01:58]} Qc7 {[%emt 0:00:39]} 12. Nd4 {[%emt 0:00:59]} Ne5 {[%emt 0:00:58]} 13. Nb5 {[%emt 0:00:49]} Qb8 {[%emt 0:00:11]} 14. Be2 {[%emt 0:00:48]} a6 {[%emt 0:12:46]} 15. Na3 {[%emt 0:01:32]} bxc5 {[%emt 0:04:26]} 16. f4 {[%emt 0:06:25]} Nc6 {[%emt 0:05:16]} 17. Qc2 {[%emt 0:05:26]} Qc7 {[%emt 0:01:47]} 18. Rab1 {[%emt 0:07:57]} Be6 {[%emt 0:13:38]} 19. Bc4 {[%emt 0:20:17]} Bxc4 {[%emt 0:06:15]} 20. Nxc4 {[%emt 0:00:07]} Rfb8 {[%emt 0:05:19]} 21. e5 {[%emt 0:03:10]} e6 {[%emt 0:08:54]} 22. Rxb8+ {[%emt 0:12:46]} Rxb8 {[%emt 0:03:17]} 23. Qa4 {[%emt 0:06:30]} Ra8 {[%emt 0:04:09]} 24. Rd1 {[%emt 0:01:01]} Bf8 {[%emt 0:01:24]} 25. Nd6 {[%emt 0:05:41]} Ne7 26. Ne8 {[%emt 0:04:55]} Qc6 {[%emt 0:11:13]} 27. Qxc6 {[%emt 0:00:56]} Nxc6 {[%emt 0:00:03]} 28. Nf6+ {[%emt 0:00:31]} Kg7 {[%emt 0:00:20]} 29. Rd7 {[%emt 0:00:59]} g5 {[%emt 0:06:24]} 30. g3 {[%emt 0:01:51]} gxf4 {[%emt 0:05:29]} 31. gxf4 {[%emt 0:00:04]} Rd8 {[%emt 0:02:10]} 32. Kf2 {[%emt 0:02:52]} Rxd7 {[%emt 0:02:58]} 33. Nxd7 {[%emt 0:00:09]} c4 {[%emt 0:00:08]} 34. Kf3 {[%emt 0:06:41]} Be7 {[%emt 0:01:04]} 35. Nb6 {[%emt 0:02:29]} Na5 {[%emt 0:00:32]} 36. Ke4 {[%emt 0:00:42]} f6 {[%emt 0:01:50]} 37. exf6+ {[%emt 0:02:19]} Bxf6 {[%emt 0:00:33]} 38. Bd4 {[%emt 0:00:09]} Bxd4 {[%emt 0:00:38]} 39. Kxd4 {[%emt 0:00:04]} Kf6 {[%emt 0:00:08]} 40. Ke4 {[%emt 0:03:59]} Ke7 {[%emt 0:00:13]} 41. Ke3 {[%emt 0:33:33]} Kf7 {[%emt 0:06:58]} 42. Nd7 {[%emt 0:00:00]} Nc6 {[%emt 0:01:24]} 43. Nc5 {[%emt 0:00:00]} a5 {[%emt 0:03:15]} 44. Nd7 {[%emt 0:00:00]} Ne7 {[%emt 0:03:48]} 45. Kd4 {[%emt 0:00:00]} Nd5 {[%emt 0:09:02]} 46. f5 {[%emt 0:00:00]} Ne7 {[%emt 0:03:55]} 47. fxe6+ {[%emt 0:00:00]} Kxe6 {[%emt 0:00:02]} 48. Nf8+ {[%emt 0:00:00]} Kf5 {[%emt 0:03:02]} 49. Nxh7 {[%emt 0:00:00]} Ng8 {[%emt 0:00:51]} 50. Kxc4 {[%emt 0:00:00]} Nh6 {[%emt 0:00:06]} 51. Kb5 {[%emt 0:01:24]} Ng4 {[%emt 0:00:19]} 52. h4 {[%emt 0:00:54]} Ne5 {[%emt 0:00:18]} 53. Kxa5 {[%emt 0:00:18]} Kg6 {[%emt 0:00:23]} 54. Ng5 {[%emt 0:01:06]} Kh5 {[%emt 0:00:03]} 55. Kb5 {[%emt 0:00:34]} Kxh4 {[%emt 0:00:04]} 56. Ne6 {[%emt 0:01:53]} Kg4 {[%emt 0:00:27]} 57. a4 {[%emt 0:00:17]} Kf5 {[%emt 0:02:29]} 58. Nc5 {[%emt 0:01:11]} Nf7 {[%emt 0:00:19]} 59. Kc6 {[%emt 0:00:36]} Ke5 {[%emt 0:00:41]} 60. a5 {[%emt 0:00:52]} Nd6 {[%emt 0:00:09]} 61. Nd3+ {[%emt 0:00:34]} Ke6 {[%emt 0:00:04]} 62. a6 {[%emt 0:00:14]} Nc8 {[%emt 0:00:03]} 63. c4 {[%emt 0:00:32]} Ke7 {[%emt 0:00:44]} 64. Kc7 {[%emt 0:00:20]} 1-0

[Event "FIDE Women GP Monaco 2019"]
[Site "Monaco"]
[Date "2019.12.04"]
[Round "2.3"]
[White "Lagno, Kateryna"]
[Black "Gunina, Valentina"]
[Result "1-0"]
[ECO "C67"]
[WhiteElo "2547"]
[BlackElo "2492"]
[Annotator "ChessBase"]
[PlyCount "145"]
[EventDate "2019.12.03"]
[EventType "tourn"]
[EventCountry "MNC"]
[SourceTitle "playchess.com"]
[Source "ChessBase"]
[SourceQuality "1"]
[TimeControl "40/5400+30:1800+30"]

1. e4 {[%emt 0:00:00]} e5 {[%emt 0:00:00]} 2. Nf3 {[%emt 0:00:00]} Nc6 {[%emt 0:00:00]} 3. Bb5 {[%emt 0:00:00]} Nf6 {[%emt 0:00:34]} 4. O-O {[%emt 0:00:29]} Nxe4 {[%emt 0:00:53]} 5. Re1 {[%emt 0:00:12]} Nd6 {[%emt 0:00:30]} 6. Nxe5 {[%emt 0:00:13]} Nxe5 {[%emt 0:00:06]} 7. Rxe5+ {[%emt 0:00:04]} Be7 {[%emt 0:00:03]} 8. Bf1 {[%emt 0:00:18]} O-O {[%emt 0:00:31]} 9. d4 {[%emt 0:00:11]} Bf6 {[%emt 0:01:08]} 10. Re1 {[%emt 0:00:29]} Nf5 {[%emt 0:01:06]} 11. d5 {[%emt 0:00:29]} d6 {[%emt 0:20:00]} 12. Nd2 {[%emt 0:01:20]} c6 {[%emt 0:09:37]} 13. Ne4 {[%emt 0:05:56]} Be5 {[%emt 0:06:38]} 14. c3 {[%emt 0:01:01]} cxd5 {[%emt 0:21:11]} 15. Qxd5 {[%emt 0:00:20]} Be6 {[%emt 0:00:04]} 16. Qxb7 {[%emt 0:07:32]} Rb8 {[%emt 0:01:17]} 17. Qa6 d5 {[%emt 0:20:34]} 18. Ng5 {[%emt 0:06:06]} Rb6 {[%emt 0:11:46]} 19. Qe2 {[%emt 0:10:19]} Bb8 {[%emt 0:00:57]} 20. Qh5 {[%emt 0:01:53]} h6 {[%emt 0:00:00]} 21. Nxe6 {[%emt 0:00:26]} fxe6 {[%emt 0:00:02]} 22. Bd3 {[%emt 0:06:50]} Qf6 {[%emt 0:02:56]} 23. Bxf5 {[%emt 0:02:56]} exf5 {[%emt 0:00:30]} 24. Qf3 {[%emt 0:03:32]} Qd6 {[%emt 0:00:54]} 25. g3 {[%emt 0:02:30]} f4 {[%emt 0:00:15]} 26. gxf4 {[%emt 0:21:41]} Qd7 {[%emt 0:00:03]} 27. Be3 {[%emt 0:02:05]} Rxb2 {[%emt 0:00:41]} 28. Red1 {[%emt 0:00:30]} Qf7 {[%emt 0:01:07]} 29. Qxd5 {[%emt 0:01:44]} a6 {[%emt 0:00:30]} 30. Qxf7+ {[%emt 0:01:31]} Rxf7 {[%emt 0:00:23]} 31. Rab1 {[%emt 0:02:48]} Rxb1 {[%emt 0:00:15]} 32. Rxb1 {[%emt 0:00:03]} Bxf4 {[%emt 0:00:08]} 33. Bd4 {[%emt 0:04:50]} Rf5 {[%emt 0:00:07]} 34. Rb6 {[%emt 0:00:35]} Rg5+ {[%emt 0:00:44]} 35. Kh1 {[%emt 0:02:35]} Ra5 {[%emt 0:00:34]} 36. Rg6 {[%emt 0:00:45]} Rxa2 {[%emt 0:01:18]} 37. Rxg7+ {[%emt 0:00:08]} Kf8 {[%emt 0:00:02]} 38. Ra7 {[%emt 0:01:59]} a5 {[%emt 0:00:31]} 39. Kg2 {[%emt 0:01:23]} a4 {[%emt 0:00:09]} 40. c4 {[%emt 0:06:09]} Ke8 {[%emt 0:00:36]} 41. c5 {[%emt 0:30:24]} a3 {[%emt 0:06:59]} 42. h3 {[%emt 0:00:00]} Rd2 {[%emt 0:11:12]} 43. Bc3 {[%emt 0:00:00]} Rc2 {[%emt 0:01:25]} 44. Rxa3 {[%emt 0:00:00]} Be3 {[%emt 0:00:04]} 45. Be1 {[%emt 0:00:00]} Bxc5 {[%emt 0:00:37]} 46. Ra6 {[%emt 0:00:00]} Rc1 {[%emt 0:04:47]} 47. Re6+ {[%emt 0:00:00]} Kf7 {[%emt 0:00:13]} 48. Re2 {[%emt 0:00:00]} Bf8 {[%emt 0:00:36]} 49. Ba5 {[%emt 0:00:00]} Rc6 {[%emt 0:02:05]} 50. Rb2 {[%emt 0:00:00]} Rg6+ {[%emt 0:01:06]} 51. Kf1 {[%emt 0:00:00]} Rf6 {[%emt 0:00:09]} 52. Bb6 {[%emt 0:00:00]} Kg6 {[%emt 0:00:51]} 53. Be3 {[%emt 0:00:00]} Ra6 {[%emt 0:00:23]} 54. Kg2 {[%emt 0:00:00]} Re6 {[%emt 0:00:29]} 55. Rb5 {[%emt 0:00:00]} Be7 {[%emt 0:00:34]} 56. Kg3 {[%emt 0:02:31]} Bg5 {[%emt 0:04:06]} 57. Bd4 {[%emt 0:02:42]} Rd6 {[%emt 0:01:29]} 58. Be5 {[%emt 0:00:47]} Rd3+ {[%emt 0:00:07]} 59. f3 {[%emt 0:01:50]} Ra3 {[%emt 0:02:37]} 60. h4 {[%emt 0:00:32]} Be7 {[%emt 0:00:52]} 61. h5+ {[%emt 0:00:44]} Kf7 {[%emt 0:00:01]} 62. Rb6 {[%emt 0:01:20]} Bg5 {[%emt 0:01:03]} 63. Kg4 {[%emt 0:00:14]} Be3 {[%emt 0:00:13]} 64. Rf6+ {[%emt 0:00:23]} Kg8 {[%emt 0:00:45]} 65. Rg6+ {[%emt 0:00:38]} Kf7 {[%emt 0:00:01]} 66. f4 {[%emt 0:00:27]} Ra5 {[%emt 0:01:03]} 67. Rf6+ {[%emt 0:00:58]} Kg8 {[%emt 0:00:31]} 68. Rxh6 {[%emt 0:00:20]} Bc5 {[%emt 0:00:25]} 69. Kf5 {[%emt 0:01:28]} Bf8 {[%emt 0:00:27]} 70. Rh8+ {[%emt 0:00:25]} Kf7 {[%emt 0:00:01]} 71. h6 {[%emt 0:01:07]} Ra6 {[%emt 0:01:06]} 72. Rxf8+ {[%emt 0:00:57]} Kxf8 {[%emt 0:00:04]} 73. h7 {[%emt 0:00:03]} 1-0

[Event "FIDE Women GP Monaco 2019"]
[Site "Monaco"]
[Date "2019.12.04"]
[Round "2.4"]
[White "Kosteniuk, Alexandra"]
[Black "Goryachkina, Aleksandra"]
[Result "1-0"]
[ECO "B11"]
[WhiteElo "2483"]
[BlackElo "2572"]
[Annotator "ChessBase"]
[PlyCount "137"]
[EventDate "2019.12.03"]
[EventType "tourn"]
[EventCountry "MNC"]
[SourceTitle "playchess.com"]
[Source "ChessBase"]
[SourceQuality "1"]
[TimeControl "40/5400+30:1800+30"]

1. e4 {[%emt 0:00:00]} c6 {[%emt 0:00:00]} 2. Nc3 {[%emt 0:00:00]} d5 {[%emt 0:00:02]} 3. Nf3 {[%emt 0:00:00]} Bg4 {[%emt 0:00:16]} 4. h3 {[%emt 0:00:05]} Bxf3 {[%emt 0:00:11]} 5. Qxf3 {[%emt 0:00:06]} Nf6 {[%emt 0:00:21]} 6. g3 {[%emt 0:00:21]} e6 {[%emt 0:04:22]} 7. Bg2 {[%emt 0:00:19]} dxe4 {[%emt 0:03:13]} 8. Qe2 {[%emt 0:05:34]} Nbd7 {[%emt 0:06:25]} 9. Nxe4 {[%emt 0:00:12]} Nxe4 {[%emt 0:00:32]} 10. Qxe4 {[%emt 0:00:35]} Nf6 {[%emt 0:01:22]} 11. Qe2 {[%emt 0:00:17]} Bd6 {[%emt 0:05:47]} 12. b3 {[%emt 0:02:41]} a5 {[%emt 0:01:37]} 13. a4 {[%emt 0:03:03]} O-O {[%emt 0:00:53]} 14. Bb2 {[%emt 0:00:48]} Be7 {[%emt 0:00:54]} 15. O-O {[%emt 0:09:35]} Nd5 {[%emt 0:01:47]} 16. c4 {[%emt 0:16:37]} Nb4 {[%emt 0:05:10]} 17. d4 {[%emt 0:00:30]} Bf6 {[%emt 0:05:50]} 18. Rad1 {[%emt 0:00:49]} Re8 {[%emt 0:02:41]} 19. Bc3 {[%emt 0:08:26]} Qb6 {[%emt 0:05:28]} 20. Rfe1 {[%emt 0:05:57]} Na6 {[%emt 0:10:23]} 21. Qb2 {[%emt 0:04:31]} Nc7 {[%emt 0:05:52]} 22. Rd3 {[%emt 0:05:19]} Red8 {[%emt 0:06:02]} 23. Red1 {[%emt 0:01:15]} h6 {[%emt 0:01:09]} 24. Be4 {[%emt 0:08:43]} Ne8 {[%emt 0:02:41]} 25. R3d2 {[%emt 0:06:34]} Rd7 {[%emt 0:03:58]} 26. h4 {[%emt 0:00:14]} Rad8 {[%emt 0:02:25]} 27. Rd3 {[%emt 0:05:40]} Qa7 {[%emt 0:06:06]} 28. Qd2 {[%emt 0:00:30]} Nd6 {[%emt 0:00:13]} 29. Bg2 {[%emt 0:01:00]} Nf5 {[%emt 0:02:31]} 30. d5 {[%emt 0:01:45]} Bxc3 {[%emt 0:00:30]} 31. Qxc3 {[%emt 0:00:30]} cxd5 32. cxd5 {[%emt 0:00:00]} Qa6 {[%emt 0:13:28]} 33. Bf1 {[%emt 0:03:41]} Ne7 {[%emt 0:03:08]} 34. dxe6 {[%emt 0:04:26]} Qxe6 {[%emt 0:00:06]} 35. Qxa5 {[%emt 0:00:41]} Rxd3 {[%emt 0:01:01]} 36. Rxd3 {[%emt 0:00:08]} Rc8 {[%emt 0:00:49]} 37. Re3 {[%emt 0:04:02]} Qd7 {[%emt 0:00:12]} 38. Bc4 {[%emt 0:00:15]} Nc6 {[%emt 0:00:19]} 39. Qc5 {[%emt 0:01:26]} Re8 {[%emt 0:00:44]} 40. Qd5 {[%emt 0:00:10]} Rd8 {[%emt 0:00:36]} 41. Qxd7 {[%emt 0:05:58]} Rxd7 {[%emt 0:00:01]} 42. Re8+ {[%emt 0:01:39]} Kh7 {[%emt 0:00:01]} 43. h5 {[%emt 0:00:33]} g6 {[%emt 0:07:10]} 44. hxg6+ {[%emt 0:00:30]} Kxg6 {[%emt 0:00:23]} 45. Kg2 {[%emt 0:03:05]} Na5 {[%emt 0:02:22]} 46. Bb5 {[%emt 0:00:09]} Rd4 {[%emt 0:01:10]} 47. Re7 {[%emt 0:03:36]} Kg7 {[%emt 0:02:30]} 48. Rc7 {[%emt 0:02:20]} Kf8 {[%emt 0:06:33]} 49. Bc4 {[%emt 0:08:07]} Nxc4 {[%emt 0:00:46]} 50. bxc4 {[%emt 0:00:02]} b6 {[%emt 0:07:37]} 51. Rc6 {[%emt 0:00:12]} h5 {[%emt 0:01:04]} 52. Kh3 {[%emt 0:04:32]} Kg7 {[%emt 0:01:49]} 53. f4 {[%emt 0:02:32]} f6 {[%emt 0:00:01]} 54. Rxb6 {[%emt 0:04:02]} Rxc4 {[%emt 0:00:02]} 55. a5 {[%emt 0:00:04]} Ra4 {[%emt 0:00:56]} 56. a6 {[%emt 0:00:55]} Kg6 {[%emt 0:00:30]} 57. Kh4 {[%emt 0:00:06]} Ra1 {[%emt 0:01:20]} 58. g4 {[%emt 0:00:09]} hxg4 {[%emt 0:00:55]} 59. Kxg4 {[%emt 0:00:01]} Ra4 {[%emt 0:00:41]} 60. Kf3 {[%emt 0:02:07]} Kf5 {[%emt 0:01:18]} 61. Ke3 {[%emt 0:00:07]} Re4+ {[%emt 0:02:50]} 62. Kd3 {[%emt 0:00:07]} Ra4 {[%emt 0:00:19]} 63. Rc6 {[%emt 0:00:43]} Ra1 {[%emt 0:00:44]} 64. Kc4 {[%emt 0:02:30]} Kxf4 {[%emt 0:00:36]} 65. Rxf6+ {[%emt 0:00:04]} Ke5 {[%emt 0:00:04]} 66. Rh6 {[%emt 0:00:03]} Rc1+ {[%emt 0:01:37]} 67. Kb5 {[%emt 0:00:05]} Kd5 {[%emt 0:00:14]} 68. a7 {[%emt 0:00:09]} Rb1+ {[%emt 0:00:12]} 69. Ka6 {[%emt 0:00:13]} 1-0

[Event "FIDE Women GP Monaco 2019"]
[Site "Monaco"]
[Date "2019.12.04"]
[Round "2.5"]
[White "Zhao, Xue"]
[Black "Cramling, Pia"]
[Result "1/2-1/2"]
[ECO "A21"]
[WhiteElo "2485"]
[BlackElo "2461"]
[Annotator "ChessBase"]
[PlyCount "60"]
[EventDate "2019.12.03"]
[EventType "tourn"]
[EventCountry "MNC"]
[SourceTitle "playchess.com"]
[Source "ChessBase"]
[SourceQuality "1"]
[TimeControl "40/5400+30:1800+30"]

1. c4 {[%emt 0:00:00]} e5 {[%emt 0:00:00]} 2. Nc3 {[%emt 0:00:04]} Bb4 {[%emt 0:00:00]} 3. g3 {[%emt 0:02:31]} Bxc3 {[%emt 0:01:52]} 4. dxc3 {[%emt 0:00:59]} d6 {[%emt 0:00:34]} 5. Bg2 {[%emt 0:02:18]} Ne7 {[%emt 0:02:09]} 6. Nf3 {[%emt 0:02:25]} Nbc6 {[%emt 0:00:23]} 7. e4 {[%emt 0:02:32]} O-O {[%emt 0:01:00]} 8. Qe2 {[%emt 0:02:09]} a6 {[%emt 0:09:29]} 9. Be3 {[%emt 0:03:24]} b6 {[%emt 0:19:46]} 10. O-O-O {[%emt 0:15:05]} Qe8 {[%emt 0:00:46]} 11. b3 {[%emt 0:04:25]} f6 {[%emt 0:09:48]} 12. Nh4 {[%emt 0:02:17]} Be6 {[%emt 0:00:48]} 13. f4 {[%emt 0:02:25]} Rd8 {[%emt 0:06:22]} 14. f5 {[%emt 0:02:58]} Bf7 {[%emt 0:02:38]} 15. Rd2 {[%emt 0:05:52]} b5 {[%emt 0:04:29]} 16. c5 {[%emt 0:01:20]} d5 {[%emt 0:02:17]} 17. Rhd1 {[%emt 0:01:35]} d4 {[%emt 0:03:59]} 18. cxd4 exd4 {[%emt 0:00:08]} 19. Bf4 {[%emt 0:11:56]} Ne5 {[%emt 0:08:49]} 20. Rxd4 {[%emt 0:02:00]} Rxd4 {[%emt 0:00:05]} 21. Rxd4 {[%emt 0:00:03]} N7c6 {[%emt 0:00:07]} 22. Rd2 {[%emt 0:01:35]} Qe7 {[%emt 0:07:48]} 23. Be3 {[%emt 0:02:16]} a5 {[%emt 0:01:53]} 24. Qxb5 {[%emt 0:21:18]} Rb8 {[%emt 0:00:06]} 25. Qa6 {[%emt 0:00:15]} Qe8 {[%emt 0:04:57]} 26. Nf3 {[%emt 0:02:45]} Ra8 {[%emt 0:01:22]} 27. Qb5 Rb8 {[%emt 0:00:05]} 28. Qa6 {[%emt 0:01:42]} Ra8 {[%emt 0:00:03]} 29. Qb5 Rb8 {[%emt 0:00:06]} 30. Qa6 {[%emt 0:03:59]} Ra8 1/2-1/2